fUST/lending_fUST_20240413
["ID","MTS","AMOUNT","RATE_DAILY","PERIOD"]
[322423607,1712992239027,-213.90962097,0.00037597,4]
[322423608,1712992239036,-264.68860952,0.00037597,4]
[322423609,1712992239046,-2647.26092283,0.00037597,4]
[322423610,1712992239056,-155.56715355,0.00037597,4]
[322423611,1712992239065,-1661.93121422,0.00037597,4]
[322423612,1712992239075,-266.51962622,0.00037597,4]
[322423613,1712992239084,-279.88294856,0.00037597,4]
[322423614,1712992239093,-243.21556445,0.00037597,4]
[322423615,1712992239102,-155.49698991,0.00037597,4]
[322423616,1712992239111,-284.26068043,0.00037597,4]
[322423617,1712992239121,-502.32270366,0.00037597,4]
[322423618,1712992239131,-181.3448431,0.00037597,5]
[322423619,1712992239140,-514.06705654,0.00037597,4]
[322423620,1712992239149,-283.64420894,0.00037597,4]
[322423621,1712992239159,-999.84320572,0.00037597,4]
[322423622,1712992239169,-212.00377151,0.00037597,4]
[322423623,1712992239178,-554.30344299,0.00037597,4]
[322423624,1712992239187,-172.65631549,0.00037597,4]
[322423625,1712992239196,-155.14101577,0.00037597,4]
[322423626,1712992239205,-432.47188751,0.00037597,4]
[322423627,1712992239214,-155.33200248,0.00037597,4]
[322423628,1712992239223,-160.93940628,0.00037597,2]
[322423629,1712992239232,-310.70884735,0.00037597,4]
[322423630,1712992239242,-155.25842455,0.00037597,4]
[322423631,1712992239252,-202.95749,0.00037597,4]
[322423632,1712992239261,-155.59242425,0.00037597,4]
[322423633,1712992239270,-597.74798778,0.00037597,2]
[322423634,1712992239279,-500.0,0.00037597,15]
[322423635,1712992239288,-3281.27,0.00037597,7]
[322423636,1712992239297,-500.0,0.00037597,7]
[322423637,1712992239307,-3484.71,0.00037597,7]
[322423638,1712992239316,-1096.37,0.00037597,7]
[322423639,1712992239325,-1156.15,0.00037597,7]
[322423640,1712992239334,-500.0,0.00037597,7]
[322423641,1712992239344,-500.0,0.00037597,7]
[322423642,1712992239354,-500.0,0.00037597,7]
[322423643,1712992239364,-969.58,0.00037597,7]
[322423644,1712992239376,-553.8,0.00037597,7]
[322423645,1712992239386,-1287.2,0.00037597,7]
[322423646,1712992239396,-500.0,0.00037597,7]
[322423647,1712992239406,-500.0,0.00037597,7]
[322423648,1712992239415,-4551.0,0.00037597,7]
[322423649,1712992239425,-1737.13,0.00037597,7]
[322423650,1712992239435,-1625.62,0.00037597,7]
[322423651,1712992239445,-111908.4778743,0.00037598,5]
[322423652,1712992239456,-673.42339323,0.00037598,4]
[322423653,1712992239466,-500.99034168,0.00037598,7]
[322423655,1712992239478,-500.0,0.00037598,7]
[322423657,1712992239489,-500.0,0.00037598,7]
[322423660,1712992239500,-500.0,0.00037598,7]
[322423661,1712992239512,-500.0,0.00037598,7]
[322423664,1712992239523,-500.0,0.00037598,14]
[322423667,1712992239535,-500.0,0.00037598,7]
[322423668,1712992239546,-500.0,0.00037598,7]
[322423670,1712992239557,-500.0,0.00037598,7]
[322423672,1712992239567,-500.0,0.00037598,7]
[322423674,1712992239579,-500.0,0.00037598,7]
[322423677,1712992239590,-500.0,0.00037598,7]
[322423678,1712992239602,-817.39,0.00037598,7]
[322423681,1712992239612,-528.35,0.00037598,7]
[322423683,1712992239621,-500.0,0.00037598,7]
[322423685,1712992239631,-500.0,0.00037598,7]
[322423687,1712992239641,-500.0,0.00037598,7]
[322423688,1712992239651,-500.0,0.00037598,7]
[322423691,1712992239662,-500.0,0.00037598,7]
[322423693,1712992239671,-500.0,0.00037598,7]
[322423694,1712992239681,-500.0,0.00037598,7]
[322423696,1712992239690,-500.0,0.00037598,7]
[322423698,1712992239699,-500.0,0.00037598,7]
[322423700,1712992239709,-329.73914869,0.00037598,7]
[322423702,1712992239718,-586.2799575,0.00037598,7]
[322423704,1712992239727,-520.17380218,0.00037598,7]
[322423706,1712992239737,-162.80713427,0.00037598,7]
[322423708,1712992239745,-500.0,0.00037598,7]
[322423710,1712992239754,-501.00411996,0.00037598,7]
[322423712,1712992239764,-500.0,0.00037598,7]
[322423714,1712992239773,-500.0,0.00037598,7]
[322423716,1712992239783,-500.0,0.00037598,7]
[322423718,1712992239792,-500.0,0.00037598,7]
[322423720,1712992239800,-500.0,0.00037598,7]
[322423722,1712992239809,-500.0,0.00037598,7]
[322423724,1712992239818,-505.71973689,0.00037598,7]
[322423726,1712992239827,-500.0,0.00037598,7]
[322423728,1712992239837,-500.0,0.00037598,7]
[322423730,1712992239846,-374.25531236,0.00037598,7]
[322423732,1712992239855,-500.0,0.00037598,7]
[322423734,1712992239864,-502.33900205,0.00037598,7]
[322423736,1712992239873,-503.25069039,0.00037598,7]
[322423738,1712992239882,-500.0,0.00037598,7]
[322423740,1712992239891,-500.0,0.00037598,7]
[322423742,1712992239901,-500.0,0.00037598,7]
[322423744,1712992239911,-500.0,0.00037598,7]
[322423746,1712992239920,-300.0,0.00037598,7]
[322423747,1712992239929,-620.05184602,0.00037598,7]
[322423749,1712992239937,-500.0,0.00037598,7]
[322423751,1712992239946,-524.41683232,0.00037598,7]
[322423753,1712992239961,-183.29234504,0.00037598,7]
[322423756,1712992239971,-375.99736236,0.00037598,7]
[322423758,1712992239979,-1000.0,0.00037598,7]
[322423761,1712992239989,-500.0,0.00037598,7]
[322423763,1712992239998,-500.0,0.00037598,7]
[322423765,1712992240008,-500.0,0.00037598,7]
[322423767,1712992240017,-515.95723654,0.00037598,7]
[322423768,1712992240027,-488.13668854,0.00037598,7]
[322423771,1712992240037,-500.0,0.00037598,7]
[322423772,1712992240047,-502.23498175,0.00037598,7]
[322423774,1712992240056,-500.0,0.00037598,7]
[322423776,1712992240065,-503.26559361,0.00037598,7]
[322423778,1712992240075,-500.0,0.00037598,7]
[322423780,1712992240084,-501.77509205,0.00037598,7]
[322423783,1712992240094,-500.0,0.00037598,7]
[322423784,1712992240103,-501.42290715,0.00037598,7]
[322423787,1712992240113,-500.0,0.00037598,7]
[322423789,1712992240122,-500.0,0.00037598,7]
[322423791,1712992240131,-504.41807224,0.00037598,7]
[322423792,1712992240140,-500.0,0.00037598,7]
[322423795,1712992240149,-500.0,0.00037598,7]
[322423796,1712992240158,-502.06209144,0.00037598,7]
[322423799,1712992240168,-500.64121195,0.00037598,7]
[322423800,1712992240177,-764.62,0.00037598,7]
[322423802,1712992240186,-500.0,0.00037598,7]
[322423804,1712992240195,-510.00208274,0.00037598,7]
[322423806,1712992240205,-500.0,0.00037598,7]
[322423808,1712992240214,-1678.37,0.00037598,7]
[322423810,1712992240223,-500.0,0.00037598,7]
[322423812,1712992240232,-500.72760287,0.00037598,7]
[322423814,1712992240241,-506.27057789,0.00037598,7]
[322423816,1712992240250,-500.0,0.00037598,7]
[322423818,1712992240259,-616.05104333,0.00037598,7]
[322423820,1712992240268,-502.51846755,0.00037598,7]
[322423822,1712992240277,-500.0,0.00037598,7]
[322423824,1712992240286,-502.41766067,0.00037598,7]
[322423826,1712992240295,-500.60808878,0.00037598,7]
[322423828,1712992240304,-503.81242191,0.00037598,7]
[322423830,1712992240313,-468.88962965,0.00037598,7]
[322423832,1712992240324,-500.0,0.00037598,7]
[322423834,1712992240333,-500.0,0.00037598,7]
[322423836,1712992240342,-151.0,0.00037598,7]
[322423838,1712992240351,-500.0,0.00037598,7]
[322423840,1712992240361,-500.0,0.00037598,7]
[322423842,1712992240370,-507.29782112,0.00037598,7]
[322423844,1712992240380,-500.0,0.00037598,7]
[322423846,1712992240390,-500.0,0.00037598,7]
[322423849,1712992240399,-500.65378748,0.00037598,7]
[322423851,1712992240409,-500.0,0.00037598,7]
[322423853,1712992240419,-500.0,0.00037598,7]
[322423855,1712992240428,-500.0,0.00037598,7]
[322423856,1712992240438,-502.53582593,0.00037598,7]
[322423858,1712992240447,-500.0,0.00037598,7]
[322423860,1712992240456,-500.0,0.00037598,7]
[322423862,1712992240465,-500.0,0.00037598,7]
[322423864,1712992240474,-500.0,0.00037598,7]
[322423866,1712992240483,-500.0,0.00037598,7]
[322423868,1712992240493,-500.0,0.00037598,7]
[322423870,1712992240502,-500.0,0.00037598,7]
[322423872,1712992240512,-984.77,0.00037598,7]
[322423874,1712992240521,-873.38,0.00037598,7]
[322423876,1712992240530,-503.35510766,0.00037598,7]
[322423878,1712992240539,-1029.22,0.00037598,7]
[322423880,1712992240548,-500.0,0.00037598,7]
[322423882,1712992240557,-510.51005403,0.00037598,7]
[322423884,1712992240567,-3307.47,0.00037598,7]
[322423886,1712992240576,-1412.82,0.00037598,7]
[322423888,1712992240585,-345.51279381,0.00037598,7]
[322423890,1712992240594,-502.10542521,0.00037598,7]
[322423892,1712992240603,-500.0,0.00037598,7]
[322423894,1712992240612,-500.0,0.00037598,7]
[322423896,1712992240621,-500.0,0.00037598,7]
[322423898,1712992240631,-500.78951343,0.00037598,7]
[322423900,1712992240640,-500.0,0.00037598,7]
[322423902,1712992240649,-500.0,0.00037598,7]
[322423904,1712992240658,-169.64659078,0.00037598,7]
[322423906,1712992240667,-500.0,0.00037598,7]
[322423908,1712992240675,-500.0,0.00037598,7]
[322423910,1712992240684,-505.34467129,0.00037598,7]
[322423912,1712992240693,-500.0,0.00037598,7]
[322423914,1712992240703,-500.0,0.00037598,7]
[322423916,1712992240713,-500.0,0.00037598,7]
[322423918,1712992240722,-500.0,0.00037598,7]
[322423920,1712992240731,-156.49808185,0.00037598,7]
[322423922,1712992240740,-500.0,0.00037598,7]
[322423924,1712992240750,-500.0,0.00037598,7]
[322423926,1712992240759,-500.0,0.00037598,7]
[322423928,1712992240768,-500.0,0.00037598,7]
[322423930,1712992240777,-500.0,0.00037598,7]
[322423932,1712992240786,-500.0,0.00037598,7]
[322423934,1712992240796,-500.0,0.00037598,7]
[322423936,1712992240805,-500.0,0.00037598,7]
[322423938,1712992240814,-500.0,0.00037598,7]
[322423940,1712992240823,-500.0,0.00037598,7]
[322423942,1712992240832,-227.86940097,0.00037598,7]
[322423944,1712992240841,-500.0,0.00037598,7]
[322423946,1712992240850,-500.0,0.00037598,7]
[322423948,1712992240859,-500.0,0.00037598,7]
[322423950,1712992240868,-500.0,0.00037598,7]
[322423952,1712992240877,-500.0,0.00037598,7]
[322423954,1712992240886,-500.0,0.00037598,7]
[322423956,1712992240895,-500.0,0.00037598,7]
[322423958,1712992240904,-500.0,0.00037598,7]
[322423968,1712992241003,-500.0,0.00037598,7]
[322423970,1712992241013,-1007.54,0.00037598,7]
[322423972,1712992241023,-500.0,0.00037598,7]
[322423974,1712992241033,-500.0,0.00037598,7]
[322423976,1712992241044,-500.0,0.00037598,7]
[322423978,1712992241054,-500.0,0.00037598,7]
[322423980,1712992241063,-500.0,0.00037598,7]
[322423982,1712992241073,-186.98402372,0.00037598,7]
[322423985,1712992241084,-500.0,0.00037598,7]
[322423986,1712992241093,-500.0,0.00037598,7]
[322423988,1712992241103,-500.0,0.00037598,7]
[322423990,1712992241112,-259.00466111,0.00037598,7]
[322423992,1712992241121,-557.83602978,0.00037598,7]
[322423994,1712992241130,-155.72068848,0.00037598,7]
[322423997,1712992241141,-2886.95,0.00037598,7]
[322423999,1712992241150,-1282.92,0.00037598,7]
[322424001,1712992241159,-500.0,0.00037598,7]
[322424003,1712992241169,-500.0,0.00037598,7]
[322424005,1712992241178,-500.0,0.00037598,7]
[322424007,1712992241187,-500.0,0.00037598,7]
[322424008,1712992241197,-1187.2,0.00037598,7]
[322424010,1712992241205,-40282.33,0.00037598,7]
[322424012,1712992241215,-500.0,0.00037598,7]
[322424014,1712992241224,-500.0,0.00037598,7]
[322424016,1712992241233,-500.0,0.00037598,7]
[322424018,1712992241243,-153.39951599,0.00037598,7]
[322424020,1712992241254,-500.0,0.00037598,7]
[322424022,1712992241263,-500.0,0.00037598,7]
[322424024,1712992241272,-500.0,0.00037598,7]
[322424026,1712992241281,-505.28751995,0.00037598,7]
[322424028,1712992241290,-2613.02,0.00037598,7]
[322424030,1712992241299,-500.0,0.00037598,7]
[322424032,1712992241309,-165.52530305,0.00037598,7]
[322424034,1712992241318,-500.0,0.00037598,7]
[322424036,1712992241326,-500.0,0.00037598,7]
[322424038,1712992241336,-509.06937198,0.00037598,7]
[322424040,1712992241345,-500.0,0.00037598,7]
[322424042,1712992241357,-500.0,0.00037598,7]
[322424044,1712992241367,-3102.99,0.00037598,7]
[322424046,1712992241376,-500.0,0.00037598,7]
[322424048,1712992241386,-1712.9,0.00037598,7]
[322424050,1712992241395,-500.0,0.00037598,7]
[322424052,1712992241405,-500.0,0.00037598,7]
[322424054,1712992241414,-500.0,0.00037598,7]
[322424056,1712992241424,-500.0,0.00037598,7]
[322424058,1712992241434,-500.0,0.00037598,7]
[322424060,1712992241443,-500.0,0.00037598,7]
[322424062,1712992241454,-500.0,0.00037598,7]
[322424064,1712992241463,-500.0,0.00037598,7]
[322424066,1712992241472,-500.0,0.00037598,7]
[322424068,1712992241481,-500.0,0.00037598,7]
[322424070,1712992241490,-581.8,0.00037598,7]
[322424072,1712992241499,-500.0,0.00037598,7]
[322424074,1712992241510,-500.0,0.00037598,7]
[322424077,1712992241519,-500.79208165,0.00037598,7]
[322424079,1712992241528,-500.0,0.00037598,7]
[322424081,1712992241537,-500.0,0.00037598,7]
[322424083,1712992241547,-500.0,0.00037598,7]
[322424084,1712992241556,-500.0,0.00037598,7]
[322424087,1712992241566,-857.13,0.00037598,7]
[322424088,1712992241575,-1336.14,0.00037598,7]
[322424090,1712992241584,-500.0,0.00037598,7]
[322424092,1712992241593,-591.88,0.00037598,7]
[322424095,1712992241603,-460.94755623,0.00037598,7]
[322424096,1712992241612,-500.0,0.00037598,7]
[322424099,1712992241622,-500.0,0.00037598,7]
[322424100,1712992241631,-500.0,0.00037598,7]
[322424102,1712992241640,-500.0,0.00037598,7]
[322424104,1712992241650,-500.0,0.00037598,7]
[322424107,1712992241659,-500.0,0.00037598,7]
[322424109,1712992241668,-500.0,0.00037598,7]
[322424110,1712992241677,-500.70531605,0.00037598,7]
[322424112,1712992241686,-500.0,0.00037598,7]
[322424115,1712992241696,-500.0,0.00037598,7]
[322424117,1712992241705,-500.0,0.00037598,7]
[322424119,1712992241715,-500.0,0.00037598,7]
[322424121,1712992241724,-2422.75,0.00037598,7]
[322424123,1712992241733,-500.0,0.00037598,7]
[322424125,1712992241742,-500.81964444,0.00037598,7]
[322424126,1712992241750,-500.0,0.00037598,7]
[322424128,1712992241762,-500.0,0.00037598,7]
[322424130,1712992241771,-500.0,0.00037598,7]
[322424132,1712992241780,-500.0,0.00037598,7]
[322424135,1712992241789,-500.0,0.00037598,7]
[322424136,1712992241799,-500.0,0.00037598,7]
[322424138,1712992241808,-500.0,0.00037598,7]
[322424140,1712992241817,-8214.3,0.00037598,7]
[322424142,1712992241827,-1152.46,0.00037598,7]
[322424145,1712992241837,-500.0,0.00037598,7]
[322424147,1712992241847,-500.0,0.00037598,7]
[322424148,1712992241856,-500.0,0.00037598,7]
[322424150,1712992241864,-503.49918991,0.00037598,7]
[322424152,1712992241874,-507.36235383,0.00037598,7]
[322424154,1712992241884,-500.0,0.00037598,7]
[322424156,1712992241892,-905.82,0.00037598,7]
[322424158,1712992241902,-500.0,0.00037598,7]
[322424160,1712992241911,-502.1843144,0.00037598,7]
[322424162,1712992241920,-500.0,0.00037599,7]
[322424164,1712992241930,-500.0,0.00037599,7]
[322424166,1712992241939,-500.0,0.00037599,7]
[322424168,1712992241949,-500.0,0.00037599,7]
[322424170,1712992241961,-501.63398717,0.00037599,7]
[322424172,1712992241973,-500.0,0.00037599,7]
[322424174,1712992241981,-500.0,0.00037599,7]
[322424176,1712992241990,-500.0,0.00037599,7]
[322424178,1712992241999,-500.0,0.00037599,7]
[322424180,1712992242008,-500.0,0.00037599,7]
[322424182,1712992242017,-501.68703059,0.00037599,7]
[322424184,1712992242026,-502.30594944,0.00037599,7]
[322424186,1712992242035,-212.7434145,0.00037599,7]
[322424188,1712992242044,-500.0,0.00037599,7]
[322424190,1712992242054,-500.0,0.00037599,7]
[322424192,1712992242062,-500.0,0.00037599,7]
[322424194,1712992242071,-500.0,0.00037599,7]
[322424196,1712992242080,-500.0,0.00037599,7]
[322424198,1712992242088,-500.0,0.00037599,7]
[322424200,1712992242097,-322.12859759,0.00037599,7]
[322424202,1712992242107,-501.05186467,0.00037599,7]
[322424204,1712992242116,-501.96761471,0.00037599,7]
[322424206,1712992242126,-500.0,0.00037599,7]
[322424208,1712992242136,-500.0,0.00037599,7]
[322424210,1712992242145,-381.97699144,0.00037599,7]
[322424212,1712992242154,-1656.79,0.00037599,7]
[322424214,1712992242163,-500.0,0.00037599,7]
[322424216,1712992242172,-500.0,0.00037599,7]
[322424218,1712992242181,-500.0,0.00037599,7]
[322424220,1712992242190,-500.0,0.00037599,7]
[322424222,1712992242199,-500.0,0.00037599,7]
[322424224,1712992242209,-500.0,0.00037599,7]
[322424226,1712992242218,-500.0,0.00037599,7]
[322424228,1712992242227,-503.26166634,0.00037599,7]
[322424230,1712992242236,-500.0,0.00037599,7]
[322424232,1712992242245,-500.0,0.00037599,7]
[322424234,1712992242254,-500.0,0.00037599,7]
[322424236,1712992242263,-500.0,0.00037599,7]
[322424237,1712992242273,-500.0,0.00037599,7]
[322424239,1712992242282,-500.0,0.00037599,7]
[322424241,1712992242291,-500.0,0.00037599,7]
[322424243,1712992242300,-500.0,0.00037599,7]
[322424245,1712992242309,-500.59608291,0.00037599,7]
[322424246,1712992242319,-500.0,0.00037599,7]
[322424247,1712992242328,-500.0,0.00037599,7]
[322424248,1712992242337,-500.0,0.00037599,7]
[322424249,1712992242347,-500.0,0.00037599,7]
[322424250,1712992242356,-500.0,0.00037599,7]
[322424251,1712992242365,-501.24410365,0.00037599,7]
[322424252,1712992242375,-500.0,0.00037599,7]
[322424253,1712992242384,-500.0,0.00037599,7]
[322424254,1712992242397,-505.48420092,0.00037599,7]
[322424255,1712992242407,-500.0,0.00037599,7]
[322424256,1712992242417,-500.0,0.00037599,7]
[322424257,1712992242426,-500.0,0.00037599,7]
[322424258,1712992242436,-500.0,0.00037599,7]
[322424259,1712992242445,-500.0,0.00037599,7]
[322424260,1712992242455,-500.0,0.00037599,7]
[322424261,1712992242464,-500.0,0.00037599,7]
[322424262,1712992242474,-285.65683808,0.00037599,7]
[322424264,1712992242483,-239.44677944,0.00037599,7]
[322424265,1712992242492,-500.0,0.00037599,7]
[322424267,1712992242501,-403.0062088,0.00037599,7]
[322424269,1712992242511,-500.0,0.00037599,7]
[322424271,1712992242519,-434.21428515,0.00037599,7]
[322424273,1712992242528,-501.47356182,0.00037599,7]
[322424274,1712992242538,-585.42150405,0.00037599,7]
[322424276,1712992242547,-500.0,0.00037599,7]
[322424278,1712992242556,-500.0,0.00037599,7]
[322424280,1712992242565,-500.0,0.00037599,7]
[322424282,1712992242574,-500.0,0.00037599,7]
[322424284,1712992242583,-500.0,0.00037599,7]
[322424286,1712992242593,-500.0,0.00037599,7]
[322424288,1712992242602,-500.0,0.00037599,7]
[322424290,1712992242611,-513.28596305,0.00037599,7]
[322424292,1712992242620,-500.0,0.00037599,7]
[322424294,1712992242629,-500.0,0.00037599,7]
[322424296,1712992242639,-500.0,0.00037599,7]
[322424298,1712992242649,-500.0,0.00037599,7]
[322424300,1712992242659,-500.0,0.00037599,7]
[322424302,1712992242668,-873.01,0.00037599,7]
[322424304,1712992242678,-500.0,0.00037599,7]
[322424306,1712992242688,-500.0,0.00037599,7]
[322424308,1712992242697,-500.0,0.00037599,7]
[322424310,1712992242706,-500.0,0.00037599,7]
[322424312,1712992242716,-501.61728014,0.00037599,7]
[322424314,1712992242725,-501.33988222,0.00037599,7]
[322424316,1712992242734,-500.0,0.00037599,7]
[322424318,1712992242743,-500.0,0.00037599,7]
[322424320,1712992242753,-500.0,0.00037599,7]
[322424322,1712992242762,-500.0,0.00037599,7]
[322424324,1712992242773,-500.0,0.00037599,7]
[322424326,1712992242781,-500.0,0.00037599,7]
[322424328,1712992242790,-500.0,0.00037599,7]
[322424330,1712992242799,-500.0,0.00037599,7]
[322424332,1712992242809,-617.84541865,0.00037599,7]
[322424334,1712992242818,-500.0,0.00037599,7]
[322424336,1712992242829,-500.0,0.00037599,7]
[322424339,1712992242838,-500.0,0.00037599,7]
[322424341,1712992242848,-500.0,0.00037599,7]
[322424343,1712992242857,-501.40249693,0.00037599,7]
[322424345,1712992242865,-513.20767902,0.00037599,7]
[322424347,1712992242875,-500.0,0.00037599,7]
[322424350,1712992242884,-500.0,0.00037599,7]
[322424353,1712992242893,-500.0,0.00037599,7]
[322424355,1712992242902,-500.0,0.00037599,7]
[322424357,1712992242910,-500.0,0.00037599,7]
[322424359,1712992242919,-502.37660325,0.00037599,7]
[322424361,1712992242929,-275.83421792,0.00037599,7]
[322424363,1712992242938,-501.62064787,0.00037599,7]
[322424365,1712992242947,-214.81493705,0.00037599,7]
[322424367,1712992242960,-500.0,0.00037599,7]
[322424369,1712992242969,-500.0,0.00037599,7]
[322424371,1712992242979,-500.0,0.00037599,7]
[322424373,1712992242987,-500.0,0.00037599,7]
[322424375,1712992242996,-500.0,0.00037599,7]
[322424377,1712992243008,-500.0,0.00037599,7]
[322424388,1712992243103,-3171.51,0.00037599,7]
[322424390,1712992243114,-500.0,0.00037599,7]
[322424392,1712992243123,-500.0,0.00037599,7]
[322424394,1712992243132,-503.91738435,0.00037599,7]
[322424396,1712992243143,-1098.99,0.00037599,7]
[322424398,1712992243153,-500.0,0.00037599,7]
[322424400,1712992243162,-500.0,0.00037599,7]
[322424402,1712992243171,-500.0,0.00037599,7]
[322424404,1712992243180,-500.0,0.00037599,7]
[322424406,1712992243190,-506.21965015,0.00037599,7]
[322424408,1712992243198,-500.0,0.00037599,7]
[322424410,1712992243207,-500.0,0.00037599,7]
[322424412,1712992243216,-500.0,0.00037599,7]
[322424414,1712992243225,-504.18454249,0.00037599,7]
[322424416,1712992243234,-507.29060411,0.00037599,7]
[322424418,1712992243244,-500.0,0.00037599,7]
[322424420,1712992243254,-500.0,0.00037599,7]
[322424422,1712992243264,-500.0,0.00037599,7]
[322424424,1712992243273,-1982.26,0.00037599,7]
[322424426,1712992243282,-500.0,0.00037599,7]
[322424428,1712992243291,-343.83564179,0.00037599,7]
[322424430,1712992243300,-500.0,0.00037599,7]
[322424432,1712992243310,-501.17687522,0.00037599,7]
[322424434,1712992243319,-501.32346255,0.00037599,7]
[322424436,1712992243328,-500.0,0.00037599,7]
[322424438,1712992243336,-500.0,0.00037599,7]
[322424440,1712992243346,-501.72219097,0.00037599,7]
[322424442,1712992243354,-500.0,0.00037599,7]
[322424444,1712992243363,-248.29776842,0.00037599,7]
[322424446,1712992243372,-500.0,0.00037599,7]
[322424448,1712992243381,-500.0,0.00037599,7]
[322424449,1712992243391,-500.0,0.00037599,7]
[322424451,1712992243401,-501.40871073,0.00037599,7]
[322424454,1712992243411,-5096.38,0.00037599,7]
[322424455,1712992243420,-500.0,0.00037599,7]
[322424457,1712992243429,-500.0,0.00037599,7]
[322424459,1712992243438,-500.0,0.00037599,7]
[322424461,1712992243447,-500.0,0.00037599,7]
[322424463,1712992243456,-500.0,0.00037599,7]
[322424465,1712992243465,-507.93799496,0.00037599,7]
[322424467,1712992243475,-569.83,0.00037599,7]
[322424469,1712992243484,-767.58,0.00037599,7]
[322424471,1712992243492,-500.0,0.00037599,7]
[322424473,1712992243502,-500.0,0.00037599,7]
[322424475,1712992243512,-500.0,0.00037599,7]
[322424477,1712992243521,-500.0,0.00037599,7]
[322424479,1712992243530,-500.0,0.00037599,7]
[322424481,1712992243539,-500.0,0.00037599,7]
[322424483,1712992243549,-500.0,0.00037599,7]
[322424485,1712992243558,-500.0,0.00037599,7]
[322424487,1712992243567,-500.0,0.00037599,7]
[322424489,1712992243576,-500.0,0.00037599,7]
[322424491,1712992243585,-1218.56,0.00037599,7]
[322424493,1712992243594,-500.0,0.00037599,7]
[322424495,1712992243603,-500.0,0.00037599,7]
[322424497,1712992243612,-500.0,0.00037599,7]
[322424499,1712992243621,-500.92296154,0.00037599,7]
[322424501,1712992243630,-500.0,0.00037599,7]
[322424503,1712992243639,-500.33287522,0.00037599,7]
[322424505,1712992243648,-500.0,0.00037599,7]
[322424507,1712992243657,-416.00457762,0.00037599,7]
[322424509,1712992243666,-500.0,0.00037599,7]
[322424511,1712992243675,-501.09961894,0.00037599,2]
[322424513,1712992243684,-500.0,0.00037599,7]
[322424515,1712992243693,-500.0,0.00037599,7]
[322424517,1712992243702,-500.0,0.00037599,7]
[322424519,1712992243711,-501.91655438,0.00037599,7]
[322424521,1712992243720,-153.0,0.000376,2]
[322424523,1712992243729,-153.0,0.000376,2]
[322424525,1712992243738,-153.0,0.000376,2]
[322424527,1712992243747,-151.0,0.000376,2]
[322424529,1712992243756,-1000.0,0.000376,2]
[322424531,1712992243765,-1000.0,0.000376,2]
[322424533,1712992243774,-1000.0,0.000376,2]
[322424535,1712992243783,-1000.0,0.000376,2]
[322424537,1712992243791,-1000.0,0.000376,2]
[322424539,1712992243800,-1000.0,0.000376,2]
[322424540,1712992243809,-1000.0,0.000376,2]
[322424543,1712992243819,-2000.0,0.000376,2]
[322424544,1712992243828,-2000.0,0.000376,2]
[322424546,1712992243837,-1000.0,0.000376,2]
[322424548,1712992243846,-5006.452093,0.000376,2]
[322424550,1712992243855,-150.5,0.00037644,35]
[322424552,1712992243864,-416.0,0.00037644,35]
[322424554,1712992243873,-150.5,0.0003765,35]
[322424556,1712992243882,-876.0,0.0003765,35]
[322424558,1712992243891,-150.5,0.00037654,35]